{"text_format":"3","workbook":"xlsx","n_sheets":4,"sheets":["V DE","V FR","V IT","V ENG"],"not_rendered":{"macros":1,"defined_names":24},"read":"whole","date_system":"1900"}

{"sheet":"V DE","index":0,"n_rows":119,"n_cols":18,"rows_kept":119,"merged":[[24,0,24,3],[24,4,24,5],[32,1,32,6],[34,0,34,6],[35,0,35,6]]}
[{"$f":"I1","v":"Evanusa Freire "},{"$nulls":6},"Vorname und Name VN","Evanusa Freire ",{"$nulls":4},"ACS","Automobil Club der Schweiz","Wasserwerkgasse 39","3000 Bern","info@acs.ch"]
[{"$f":"I2","v":"Rue des Deux Cantons 2"},{"$nulls":6},"Adresse","Rue des Deux Cantons 2",{"$nulls":4},"Allianz","Allianz Suisse Vers.-Gesellschaft AG","Richtiplatz 1","8304 Wallisellen","contact@allianz.ch"]
[{"$f":"I3","v":"1530 Payerne"},{"$nulls":6},"PLZ und Ort","1530 Payerne",{"$nulls":4},"Arag","AXA-Arag Rechtsschutz","Affolternstrasse 42","8050 Zürich","info@AXA-ARAG.ch"]
[{"$nulls":13},"Assista","Assista Rechtsschutz AG","chemin de Blandonnet 4","1214 Vernier","contact@assista.ch"]
[{"$nulls":13},"Axa","AXA Winterthur","General-Guisan-Strasse 40","8400 Winterthur","info@axa.ch"]
[{"$nulls":13},"Basler","Baloise Versicherungen AG","Aeschengraben 21","4051 Basel","kundenservice@baloise.ch"]
[{"$nulls":13},"CAP","CAP Rechtsschutz-Vers.Gesellschaft AG","Neue Winterthurerstrasse 88","8304 Wallisellen","impressum@cap.ch"]
[{"$nulls":3},{"$f":"VLOOKUP(I8,Firmen,2,0)","v":"AXA Winterthur"},{"$nulls":3},"Firma","Axa","(Basler)",{"$nulls":3},"Coop","Coop Rechtsschutz AG","Entfelderstrasse 2","5001 Aarau","info@cooprecht.ch"]
[{"$nulls":3},{"$f":"VLOOKUP(I8,Firmen,3,0)","v":"General-Guisan-Strasse 40"},{"$nulls":9},"CSS","CSS Versicherung","Tribschenstrasse 21","6005 Luzern","info@cssversicherung.com"]
[{"$nulls":3},{"$f":"VLOOKUP(I8,Firmen,4,0)","v":"8400 Winterthur"}]
[{"$nulls":3},{"$f":"VLOOKUP(I8,Firmen,5,0)","v":"info@axa.ch"},{"$nulls":9},"Dextra","Dextra Rechtsschutz AG","Hohlstrasse 556","8048 Zürich","info@dextra.ch"]
[{"$nulls":13},"Emmental","emmental Versicherung","Emmentalstrasse 23","3510 Konolfingen","info@emmental-versicherung.ch"]
[{"$nulls":7},"Ort",{"$f":"MID(I3,SEARCH(\" \",I3)+1,999)","v":"Payerne"},{"$nulls":4},"Fortuna","Fortuna Rechtsschutz Vers.-Gesellschaft AG","Soodmattenstrasse 2","8134 Adliswil","info.ch@generali.com"]
[{"$nulls":7},"Datum des Poststempels",{"$nulls":5},"Generali","Generali Allgemeine Versicherungen AG","Soodmattenstrasse 4","8134 Adliswil","info.ch@generali.com"]
[{"$f":"I13&\", \"&H14","v":"Payerne, Datum des Poststempels"},{"$nulls":12},"Leer"]
[{"$nulls":13},"Mobiliar","Die Mobiliar Versicherungsgesellschaft AG","Bundesgasse 35","3001 Bern","info@mobiliar.ch"]
[{"$nulls":13},"Orion","Orion Rechtsschutz-Versicherung AG","Aeschenvorstadt 50","4051 Basel","info@orion.ch"]
[{"$nulls":13},"Protekta","Protekta Rechtsschutz-Versicherung AG","Monbijoustrasse 5","3011 Bern","info@protekta.ch"]
[{"$nulls":7},"Policen-Nr.","4.001.205.946",{"$nulls":4},"smile","smile.direct versicherungen","Zürichstrasse 130","8600 Dübendorf","info@smile-direct.ch"]
["Pol. Nr.",{"$nulls":12},"TCS","TCS Touring Club Schweiz","chemin de Blandonnet 4","1214 Vernier","kontaktstelle@tcs.ch"]
[{"$nulls":13},"VCS","VCS Verkehrs-Club der Schweiz","Aarbergergasse 61","3011 Bern","assistance@verkehrsclub.ch"]
[{"$nulls":13},"Vaudoise","Vaudoise Versicherungen","Place de Milan","1001 Lausanne","info@vaudoise.ch"]
["Sehr geehrte Damen und Herren",{"$nulls":12},"Zurich CH","Zurich Schweiz","Mythenquai 2","8002 Zürich","contact@zurich.ch"]
[{"$nulls":7},"Ablösedatum","2024-09-30","(01.01.2011)"]
["Hiermit kündige ich die obenerwähnte Versicherung per:",{"$nulls":3},{"$f":"I24","v":"2024-09-30"}]
[]
["infolge: ","Vertragsablauf","              Halterwechsel",null,"     Schadenfall"]
[]
[null,"Handänderung","              Fahrzeugwechsel",null,"     Prämienanpassung"]
[]
[]
[]
[null,"Sollten bei Ihrer Gesellschaft noch weitere Verträge zum gekündigten Objekt bestehen, bitte ich Sie, auch diese Police aufzuheben."]
[]
["Diese Kündigung ist definitiv. Sehen Sie daher bitte von Wiedergewinnungsaktionen ab."]
["Besten Dank für den bis anhin gewährten Versicherungsschutz und eine kurze Aufhebungsbestätigung."]
[]
["Freundliche Grüsse"]
[]
[]
[]
[{"$f":"I1","v":"Evanusa Freire "}]
{"$rows_empty":76}
[{"$nulls":8},"Passwort: sls"]

{"sheet":"V FR","index":1,"n_rows":121,"n_cols":18,"rows_kept":121,"merged":[[34,1,34,5],[36,0,36,5],[37,0,37,5]]}
[{"$f":"I1","v":0},{"$nulls":6},"Vorname und Name VN",{"$nulls":5},"ACS","Automobile Club de Suisse","Wasserwerkgasse 39","3000 Berne","info@acs.ch"]
[{"$f":"I2","v":0},{"$nulls":6},"Adresse",{"$nulls":5},"Allianz","Allianz Suisse Assurances","Case postale","8010 Zürich","contact@allianz.ch"]
[{"$f":"I3","v":0},{"$nulls":6},"PLZ und Ort",{"$nulls":5},"Arag","AXA-Arag Protection Juridique","Affolternstrasse 42","8050 Zurich","info@AXA-ARAG.ch"]
[{"$nulls":13},"Assista","Assista Protection Juridique SA","chemin de Blandonnet 4","1214 Vernier","contact@assista.ch"]
[{"$nulls":13},"Axa","AXA Winterthur","General-Guisan-Strasse 40","8400 Winterthur","info@axa.ch"]
[{"$nulls":13},"Basler","Baloise Assurances SA","Aeschengraben 21","4051 Basel","kundenservice@baloise.ch"]
[{"$nulls":13},"CAP","CAP Ass. Protection Juridique SA","Baslerstrasse 52","8048 Zürich","impressum@cap.ch"]
[{"$nulls":3},{"$f":"VLOOKUP(I8,Firmen,2,0)","v":"Fortuna Ass. Protection Juridique SA"},{"$nulls":3},"Firma","Fortuna","(Basler)",{"$nulls":3},"Coop","Coop Protection Juridique SA","Av. De Beaulieu 19","1002 Lausanne","info@cooprecht.ch"]
[{"$nulls":3},{"$f":"VLOOKUP(I8,Firmen,3,0)","v":"Soodmattenstrasse 2"},{"$nulls":9},"CSS","CSS Assurance","Tribschenstrasse 21","6005 Luzern","info@cssversicherung.com"]
[{"$nulls":3},{"$f":"VLOOKUP(I8,Firmen,4,0)","v":"8134 Adliswil"},{"$nulls":9},"DAS","DAS Protection Juridique SA","Route de Pallatex 7a","1163 Etoy"]
[{"$nulls":3},{"$f":"VLOOKUP(I8,Firmen,5,0)","v":"info.ch@generali.com"},{"$nulls":9},"Dextra","Dextra Protection Juridique SA","Hohlstrasse 556","8048 Zürich","info@dextra.ch"]
[{"$nulls":13},"Emmental","emmental Versicherung","Emmentalstrasse 23","3510 Konolfingen","info@emmental-versicherung.ch"]
[{"$nulls":7},"Ort",{"$f":"MID(I3,SEARCH(\" \",I3)+1,999)","v":{"$error":"#VALUE!"}},{"$nulls":4},"Fortuna","Fortuna Ass. Protection Juridique SA","Soodmattenstrasse 2","8134 Adliswil","info.ch@generali.com"]
[{"$nulls":7},"date du tampon postal",{"$nulls":5},"Generali","Generali Assurance SA","Avenue Perdtemps 23","1260 Nyon","info.ch@generali.com"]
[{"$f":"I13&\", \"&H14","v":{"$error":"#VALUE!"}},{"$nulls":12},"Leer","Helvetia ","St. Alban-Anlage 26","4002 Bâle","info@helvetia.ch"]
[{"$nulls":13},"Mobiliar","Mobilière Société d'Assurances SA","Bundesgasse 35","3001 Berne","info@mobiliar.ch"]
[{"$nulls":13},"Orion","Orion Protection Juridique SA","Avenue Gratta-Paille 1","1018 Lausanne","info@orion.ch"]
[{"$nulls":13},"Protekta","Protekta Protection Juridique SA","Avenue du Théâtre 7","1002 Lausanne","info@protekta.ch"]
[{"$nulls":7},"Policen-Nr.","23.542.910",{"$nulls":4},"smile","smile.direct assurances","Zürichstrasse 130","8600 Dübendorf","info@smile-direct.ch"]
["Police no",{"$f":"I19","v":"23.542.910"},{"$nulls":11},"TCS","TCS Touring Club Suisse","chemin de Blandonnet 4","1214 Vernier","kontaktstelle@tcs.ch"]
[{"$nulls":13},"VCS","ATE Association transports et environnement","Aarbergerstrasse 61","3001 Berne","assistance@verkehrsclub.ch"]
[{"$nulls":13},"Vaudoise","Vaudoise Assurances","Place de Milan","1007 Lausanne","info@vaudoise.ch"]
["Madame, Monsieur,",{"$nulls":12},"Zurich CH","Zurich Schweiz","Hagenholzstrasse 60","8050 Zürich","contact@zurich.ch"]
[{"$nulls":7},"Ablösedatum","2026-01-31","(01.01.2011)",{"$nulls":4},"Toni digital insurance","Seefeldstrasse 5A","8008 Zurich","assurances.postfinance.ch"]
["Par la présente, je vous confirme que je résilie l'assurance susmentionnée avec"]
["effet au: ",{"$f":"I24","v":"2026-01-31"}]
[]
["à la suite de: ","     expiration","     chgt de détenteur","            sinistre"]
[]
[null,"     chgt de propriétaire","     chgt de véhicule","            adaptation de la prime"]
[]
[null,"     Selon l'article 35 LSA","     Selon droit de résiliaiton annuel"]
[null,"            ____________________________________________________________"]
[]
[null,"     Si vous aviez des autres polices pour cet objet auprès de votre compagnie, je vous prierais de les annuler également. "]
[]
["Cette résiliation est définitive. Pour cette raison, veuillez renoncer à des tentatives de conservation."]
["Je vous remercie pour la couverture d'assurance accordée jusqu'à présent et je reste dans l'attente d'une confirmation écrite de votre part. "]
[]
["Meilleures salutations"]
[]
[]
[]
[{"$f":"I1","v":0}]
{"$rows_empty":76}
[{"$nulls":8},"Passwort: sls"]

{"sheet":"V IT","index":2,"n_rows":119,"n_cols":18,"rows_kept":119,"merged":[[26,14,26,15],[27,14,27,15],[28,14,28,15],[29,14,29,15],[30,14,30,15],[31,14,31,15],[32,14,32,15],[33,1,33,6],[33,14,33,15],[34,14,34,15],[35,0,35,6],[35,14,35,15],[36,0,36,5],[36,14,36,15]]}
[{"$f":"I1","v":0},{"$nulls":6},"Vorname und Name VN",{"$nulls":5},"ACS","Automobile Club Svizzero","Wasserwerkgasse 39","3000 Berna","info@acs.ch"]
[{"$f":"I2","v":0},{"$nulls":6},"Adresse",{"$nulls":5},"Allianz","Allianz Suisse Assicurazioni SA","Postfach","8010 Zürich","contact@allianz.ch"]
[{"$f":"I3","v":0},{"$nulls":6},"PLZ und Ort",{"$nulls":5},"Arag","AXA-Arag Protezione Giuridica","Affolternstrasse 42","8050 Zurich","info@AXA-ARAG.ch"]
[{"$nulls":13},"Assista","Assista Protezione Giuridica SA","viale stazione 8a","6500 Bellinzona","contact@assista.ch"]
[{"$nulls":13},"Axa","AXA Winterthur","General-Guisan-Strasse 40","8400 Winterthur","info@axa.ch"]
[{"$nulls":13},"Basler","Basilese Assicurazioni","Aeschengraben 21","4051 Basel","kundenservice@baloise.ch"]
[{"$nulls":13},"CAP","CAP Ass. Protezione Giuridica SA","Baslerstrasse 52","8048 Zürich","impressum@cap.ch"]
[{"$nulls":7},"Firma","Leer","(Basler)",{"$nulls":3},"Coop","Coop Protezione Giuridica SA","viale stazione 31","6500 Bellinzona","info@cooprecht.ch"]
[{"$nulls":3},{"$f":"VLOOKUP(I8,Firmen,2,0)","v":""},{"$nulls":9},"CSS","CSS Assicurazione","Tribschenstrasse 21","6005 Luzern","info@cssversicherung.com"]
[{"$nulls":3},{"$f":"VLOOKUP(I8,Firmen,3,0)","v":""},{"$nulls":9},"DAS","DAS Protezione Giuridica SA","Route de Pallatex 7a","1163 Etoy"]
[{"$nulls":3},{"$f":"VLOOKUP(I8,Firmen,4,0)","v":""},{"$nulls":9},"Dextra","Dextra Protezione Giuridica SA","Hohlstrasse 556","8048 Zürich","info@dextra.ch"]
[{"$nulls":3},{"$f":"VLOOKUP(I8,Firmen,5,0)","v":0},{"$nulls":9},"Emmental","emmental Versicherung","Emmentalstrasse 23","3510 Konolfingen","info@emmental-versicherung.ch"]
[{"$nulls":7},"Ort",{"$f":"MID(I3,SEARCH(\" \",I3)+1,999)","v":{"$error":"#VALUE!"}},{"$nulls":4},"Fortuna","Fortuna Ass. Protezione Giuridica SA","Soodmattenstrasse 2","8134 Adliswil","info.ch@generali.com"]
[{"$nulls":7},"Data del timbro postale",{"$nulls":5},"Generali","Generali Assicurazioni SA","Soodmattenstrasse 4","8134 Adliswil","info.ch@generali.com"]
[{"$f":"I13&\", \"&H14","v":{"$error":"#VALUE!"}},{"$nulls":12},"Leer","","",""]
[{"$nulls":13},"Mobiliar","Mobiliare Società d'Assicurazioni SA","Bundesgasse 35","3001 Bern","info@mobiliar.ch"]
[{"$nulls":13},"Orion","Orion Protezione Giuridica SA","Centralbahnstrasse 4","4002 Basilea","info@orion.ch"]
[{"$nulls":13},"Protekta","Protekta Protezione Giuridica SA","Piazza Cioccaro 2","6900 Lugano","info@protekta.ch"]
[{"$nulls":7},"Policen-Nr.",{"$nulls":5},"smile","smile.direct assicurazioni","Zürichstrasse 130","8600 Dübendorf","info@smile-direct.ch"]
["Polizza no",{"$f":"I19","v":0},{"$nulls":11},"TCS","TCS Touring Club Svizzera","chemin de Blandonnet 4","1214 Vernier","kontaktstelle@tcs.ch"]
[{"$nulls":13},"VCS","ATA Associazione traffico e ambiente","P. Independenza 6","6501 Bellinzona","assistance@verkehrsclub.ch"]
[{"$nulls":13},"Vaudoise","Vaudoise Assicurazioni","Place de Milan","1007 Lausanne","info@vaudoise.ch"]
["Gentili Signore e Signori",{"$nulls":12},"Zurich CH","Zurich Schweiz","Hagenholzstrasse 60","8050 Zürich","contact@zurich.ch"]
[{"$nulls":7},"Ablösedatum",null,"(01.01.2011)"]
["Con la presente annunciamo l’annullamento della polizza sopra indicata "]
["con data:",{"$f":"I24","v":"00:00:00"}]
[]
["in seguito: ","     scadenza","        cambio detentore","       sinistro"]
[]
[null,"     cambio propretario","        cambio veicolo","       adattamento premio"]
[]
[null,"    ___________________________________________"]
[]
[null,"     Se presso la vostra società ci sono altri contratti in vigore per l’oggetto da annullare, siete pregati di recedere anche questa polizza."]
[]
["Questo annullamento è definitivo. Siete pregati di non cercare un eventuale recupero."]
["Grazie per la copertura concessa e per la vostra conferma.\n"]
["Cordiali saluti"]
[]
[]
[]
[{"$f":"I1","v":0}]
{"$rows_empty":76}
[{"$nulls":8},"Passwort: sls"]

{"sheet":"V ENG","index":3,"n_rows":119,"n_cols":18,"rows_kept":119,"merged":[[24,0,24,3],[24,4,24,5],[26,1,27,1],[28,1,29,1],[32,1,32,6],[34,0,34,6],[35,0,35,6]]}
[{"$f":"I1","v":0},{"$nulls":6},"Vorname und Name VN",{"$nulls":5},"ACS","Automobile Club der Schweiz","Wasserwerkgasse 39","3000 Bern","info@acs.ch"]
[{"$f":"I2","v":0},{"$nulls":6},"Adresse",{"$nulls":5},"Allianz","Allianz Suisse Vers.-Gesellschaft AG","Postfach ","8010 Zürich","contact@allianz.ch"]
[{"$f":"I3","v":0},{"$nulls":6},"PLZ und Ort",{"$nulls":5},"Arag","AXA-Arag Rechtsschutz","Affolternstrasse 42","8050 Zürich","info@AXA-ARAG.ch"]
[{"$nulls":13},"Assista","Assista Rechtsschutz AG","chemin de Blandonnet 4","1214 Vernier","contact@assista.ch"]
[{"$nulls":13},"Axa","AXA Winterthur","General-Guisan-Strasse 40","8400 Winterthur","info@axa.ch"]
[{"$nulls":13},"Basler","Baloise Versicherungen AG","Aeschengraben 21","4051 Basel","kundenservice@baloise.ch"]
[{"$nulls":13},"CAP","CAP Rechtsschutz-Vers.Gesellschaft AG","Neue Winterthurerstrasse 88","8304 Wallisellen","impressum@cap.ch"]
[{"$nulls":3},{"$f":"VLOOKUP(I8,Firmen,2,0)","v":0},{"$nulls":3},"Firma","Leer","(Basler)",{"$nulls":3},"Coop","Coop Rechtsschutz AG","Entfelderstrasse 2","5001 Aarau","info@cooprecht.ch"]
[{"$nulls":3},{"$f":"VLOOKUP(I8,Firmen,3,0)","v":0},{"$nulls":9},"CSS","CSS Versicherung","Tribschenstrasse 21","6005 Luzern","info@cssversicherung.com"]
[{"$nulls":3},{"$f":"VLOOKUP(I8,Firmen,4,0)","v":0},{"$nulls":9},"DAS","DAS Rechtsschutz","Route de Pallatex 7a","1163 Etoy"]
[{"$nulls":3},{"$f":"VLOOKUP(I8,Firmen,5,0)","v":0},{"$nulls":9},"Dextra","Dextra Rechtsschutz AG","Hohlstrasse 556","8048 Zürich","info@dextra.ch"]
[{"$nulls":13},"Emmental","emmental Versicherung","Emmentalstrasse 23","3510 Konolfingen","info@emmental-versicherung.ch"]
[{"$nulls":7},"Ort",{"$f":"MID(I3,SEARCH(\" \",I3)+1,999)","v":{"$error":"#VALUE!"}},{"$nulls":4},"Fortuna","Fortuna Rechtsschutz Vers.-Gesellschaft AG","Soodmattenstrasse 2","8134 Adliswil","info.ch@generali.com"]
[{"$nulls":7},"Date of postmark",{"$nulls":5},"Generali","Generali Allgemeine Versicherungen AG","Soodmattenstrasse 4","8134 Adliswil","info.ch@generali.com"]
[{"$f":"I13&\", \"&H14","v":{"$error":"#VALUE!"}},{"$nulls":12},"Leer"]
[{"$nulls":13},"Mobiliar","Die Mobiliar Versicherungsgesellschaft AG","Bundesgasse 35","3001 Bern","info@mobiliar.ch"]
[{"$nulls":13},"Orion","Orion Rechtsschutz-Versicherung AG","Aeschenvorstadt 50","4051 Basel","info@orion.ch"]
[{"$nulls":13},"Protekta","Protekta Rechtsschutz-Versicherung AG","Monbijoustrasse 5","3011 Bern","info@protekta.ch"]
[{"$nulls":7},"Policen-Nr.",{"$nulls":5},"smile","smile.direct versicherungen","Zürichstrasse 130","8600 Dübendorf","info@smile-direct.ch"]
["Policy No.",{"$f":"I19","v":0},{"$nulls":11},"TCS","TCS Touring Club Schweiz","chemin de Blandonnet 4","1214 Vernier","kontaktstelle@tcs.ch"]
[{"$nulls":13},"VCS","VCS Verkehrs-Club der Schweiz","Aarbergergasse 61","3001 Bern","assistance@verkehrsclub.ch"]
[{"$nulls":13},"Vaudoise","Vaudoise Versicherungen","Place de Milan","1007 Lausanne","info@vaudoise.ch"]
["Dear Sir/Madam",{"$nulls":12},"Zurich CH","Zurich Schweiz","Hagenholzstrasse 60","8050 Zürich","contact@zurich.ch"]
[{"$nulls":7},"Ablösedatum",null,"(01.01.2011)"]
["I am terminating the above-mentioned insurance policy as of:",{"$nulls":3},{"$f":"I24","v":"00:00:00"}]
[]
["Due to:","Expiration of the contract","              Change of vehicle holder",null,"     Claims"]
[]
[null,"Change of ownership","              Change of vehicle",null,"     Premium adjustment"]
[]
[]
[]
[null,"If your company has other contracts regarding the terminated property, I also ask you to cancel those policies."]
[]
["This termination is definite. Therefore, please do not try to recover the policy."]
["Thank you very much for the insurance coverage provided up to this point and for a short cancellation confirmation."]
[]
["Yours sincerely,"]
[]
[]
[]
[{"$f":"I1","v":0}]
{"$rows_empty":76}
[{"$nulls":8},"Passwort: sls"]